bitfinex/quotes_BTCUSD_20251224
["timestamp","ask_amount","ask_price","bid_price","bid_amount"]
[1766563363542,0.01152,87001.0,86989.0,0.72022]
[1766563363699,0.0107665,87000.0,86989.0,0.72022]
[1766563363895,0.01152,87001.0,86989.0,0.7317157]
[1766563364101,0.0107665,87000.0,86989.0,0.7317157]
[1766563364322,0.05746541,87009.0,86988.0,0.02301583]
[1766563364323,0.01152,87004.0,87000.0,0.74215]
[1766563364598,0.01152,87004.0,86994.0,0.01149504]
[1766563364801,0.01152,87004.0,86994.0,0.7416]
[1766563365748,0.01152,87004.0,86994.0,0.75309504]
[1766563365952,0.01152,87004.0,86996.0,0.01149478]
[1766563366234,0.01152,87004.0,86997.0,0.01149464]
[1766563366435,0.01097,87004.0,86999.0,0.01149438]
[1766563367688,0.01152,87006.0,87000.0,0.7416]
[1766563368009,0.02480944,87015.0,87000.0,0.75309425]
[1766563368010,0.01152,87009.0,87000.0,0.75309425]
[1766563368368,0.01152,87009.0,87001.0,0.01149412]
[1766563368977,0.01152,87009.0,87000.0,0.75309425]
[1766563369211,0.01152,87009.0,87001.0,0.01149412]
[1766563369413,0.01152,87009.0,87000.0,0.75309425]
[1766563370000,0.01152,87009.0,87000.0,0.7416]
[1766563370760,0.01152,87009.0,87000.0,0.75309425]
[1766563371310,0.01152,87009.0,87000.0,0.7416]
[1766563371903,0.01152,87009.0,87000.0,0.75309425]
[1766563374061,0.01152,87009.0,87000.0,0.7416]
[1766563379415,0.01152,87009.0,87000.0,0.75309425]
[1766563379615,0.01152,87009.0,87000.0,0.7416]
[1766563379896,0.01152,87009.0,86996.0,0.14264576]
[1766563379897,0.001099,87000.0,86985.0,0.74327]
[1766563380121,0.001099,87000.0,86990.0,0.74327]
[1766563380318,0.01149346,87006.0,86991.0,0.01152]
[1766563380492,0.01149372,87004.0,86990.0,0.74327]
[1766563380657,0.01149385,87003.0,86992.0,0.01152]
[1766563381041,0.01149372,87004.0,86992.0,0.01152]
[1766563381261,0.01149385,87003.0,86990.0,0.74327]
[1766563381467,0.01149372,87004.0,86992.0,0.01152]
[1766563383270,0.01149398,87002.0,86992.0,0.01152]
[1766563384260,0.01149385,87003.0,86992.0,0.01152]
[1766563386229,0.02301385,87003.0,86992.0,0.01152]
[1766563387226,0.01152,87003.0,86992.0,0.01152]
[1766563388067,0.01152,87003.0,86992.0,0.7662853]
[1766563388260,0.01152,87003.0,86992.0,0.75479]
[1766563389646,0.02301385,87003.0,86992.0,0.75479]
[1766563390437,0.01152,87003.0,86992.0,0.75479]
[1766563391516,0.01149412,87001.0,86992.0,0.01152]
[1766563391659,0.01149398,87002.0,86992.0,0.01152]
[1766563391874,0.02301385,87003.0,86992.0,0.01152]
[1766563394743,0.01149398,87002.0,86992.0,0.01152]
[1766563395052,0.02301385,87003.0,86992.0,0.01152]
[1766563396249,0.01152,87003.0,86992.0,0.01152]
[1766563397033,0.01152,87003.0,86992.0,0.75479]
[1766563398980,0.01152,87003.0,86993.0,0.74327]
[1766563399870,0.02301385,87003.0,86993.0,0.74327]
[1766563400278,0.01149398,87002.0,86993.0,0.74327]
[1766563400460,0.02301385,87003.0,86993.0,0.742721]
[1766563401552,0.01149398,87002.0,86993.0,0.742721]
[1766563401765,0.01152,87003.0,86993.0,0.742721]
[1766563404018,0.01152,87004.0,86993.0,0.742721]
[1766563405463,0.02301372,87004.0,86993.0,0.742721]
[1766563406452,0.01152,87004.0,86993.0,0.742721]
[1766563408158,0.02301372,87004.0,86993.0,0.742721]
[1766563408359,0.01152,87004.0,86993.0,0.742721]
[1766563411431,0.01149385,87003.0,86993.0,0.742721]
[1766563411612,0.02301372,87004.0,86993.0,0.742721]
[1766563411806,0.01152,87004.0,86993.0,0.742721]
[1766563412147,0.02301372,87004.0,86993.0,0.742721]
[1766563412479,0.01152,87004.0,86993.0,0.742721]
[1766563413301,0.010971,87004.0,86993.0,0.742721]
[1766563413610,0.02246472,87004.0,86993.0,0.742721]
[1766563413812,0.010971,87004.0,86993.0,0.742721]
[1766563416184,0.01152,87004.0,86995.0,0.72292]
[1766563416382,0.01152,87008.0,86998.0,0.72292]
[1766563416525,0.01152,87008.0,86999.0,0.72292]
[1766563422351,0.01149332,87007.0,86997.0,0.01152]
[1766563422714,0.04783774,87008.0,86997.0,0.01152]
[1766563424041,0.03634455,87008.0,86997.0,0.01152]
[1766563424229,0.01152,87008.0,86997.0,0.01152]
[1766563424750,0.01152,87008.0,86998.0,0.72292]
[1766563425818,0.01149332,87007.0,86998.0,0.72292]
[1766563426018,0.02301319,87008.0,86998.0,0.72292]
[1766563426223,0.01152,87008.0,86998.0,0.72292]
[1766563435116,0.02301319,87008.0,86998.0,0.72292]
[1766563435315,0.01152,87008.0,86998.0,0.72292]
[1766563436950,0.02301319,87008.0,86998.0,0.72292]
[1766563437163,0.01152,87008.0,86998.0,0.72292]
[1766563442467,0.01077334,87007.0,86998.0,0.72292]
[1766563442671,0.01152,87008.0,86998.0,0.72292]
[1766563443013,0.01077373,87007.0,86998.0,0.72292]
[1766563443188,0.01152,87008.0,86998.0,0.72292]
[1766563443350,0.01077444,87007.0,86998.0,0.72292]
[1766563443544,0.01152,87008.0,86998.0,0.72292]
[1766563443737,0.01077446,87007.0,86998.0,0.72292]
[1766563443945,0.01152,87008.0,86998.0,0.72292]
[1766563444152,0.01077446,87007.0,86998.0,0.72292]
[1766563444352,0.01152,87008.0,86998.0,0.72292]
[1766563444556,0.01077507,87007.0,86998.0,0.72292]
[1766563444765,0.01152,87008.0,86998.0,0.72292]
[1766563444971,0.01077507,87007.0,86998.0,0.72292]
[1766563445199,0.01152,87008.0,86998.0,0.72292]
[1766563445411,0.01077589,87007.0,86998.0,0.72292]
[1766563445575,0.01152,87008.0,86998.0,0.72292]
[1766563445775,0.01077592,87007.0,86998.0,0.72292]
[1766563446093,0.01152,87008.0,86998.0,0.72292]
[1766563446269,0.0107762,87007.0,86998.0,0.72292]
[1766563446636,0.01152,87008.0,86998.0,0.72292]
[1766563446757,0.01077623,87007.0,86998.0,0.72292]
[1766563446952,0.01152,87008.0,86998.0,0.72292]
[1766563447179,0.01077631,87007.0,86998.0,0.72292]
[1766563447407,0.01149346,87006.0,86998.0,0.72292]
[1766563447595,0.01149372,87004.0,86998.0,0.72292]
[1766563447798,0.03631787,87007.0,86998.0,0.72292]
[1766563448213,0.01077638,87006.0,86998.0,0.72292]
[1766563448405,0.03631787,87007.0,86998.0,0.72292]
[1766563448603,0.01077658,87006.0,86998.0,0.72292]
[1766563448821,0.03631787,87007.0,86998.0,0.72292]
[1766563449018,0.01077658,87006.0,86998.0,0.72292]
[1766563449246,0.02482455,87007.0,86998.0,0.72292]
[1766563449454,0.01077665,87006.0,86998.0,0.72292]
[1766563449618,0.02301319,87008.0,86998.0,0.72292]
[1766563449808,0.01077665,87007.0,86998.0,0.72292]
[1766563450011,0.01152,87008.0,86998.0,0.72292]
[1766563450012,0.01077665,87006.0,86998.0,0.72292]
[1766563450180,0.01152,87008.0,86998.0,0.72292]
[1766563450379,0.01077679,87007.0,86998.0,0.72292]
[1766563450601,0.01077679,87006.0,86998.0,0.72292]
[1766563450894,0.01152,87008.0,86998.0,0.72292]
[1766563451085,0.01077679,87007.0,86998.0,0.72292]
[1766563451287,0.01152,87008.0,86998.0,0.72292]
[1766563451288,0.01077679,87006.0,86998.0,0.72292]
[1766563451530,0.01152,87008.0,86998.0,0.72292]
[1766563451731,0.010777,87007.0,86998.0,0.72292]
[1766563451889,0.010777,87006.0,86998.0,0.72292]
[1766563452226,0.01152,87008.0,86998.0,0.72292]
[1766563452429,0.01077725,87007.0,86998.0,0.72292]
[1766563452610,0.01077725,87006.0,86998.0,0.72292]
[1766563452813,0.01152,87008.0,86998.0,0.72292]
[1766563453021,0.01077725,87007.0,86998.0,0.72292]
[1766563453240,0.01077725,87006.0,86998.0,0.72292]
[1766563453468,0.01152,87008.0,86998.0,0.72292]
[1766563453668,0.01077715,87007.0,86998.0,0.72292]
[1766563453957,0.01077715,87006.0,86998.0,0.72292]
[1766563454151,0.01152,87008.0,86998.0,0.72292]
[1766563454347,0.01077712,87007.0,86998.0,0.72292]
[1766563454687,0.01077712,87006.0,86998.0,0.72292]
[1766563454849,0.01152,87008.0,86998.0,0.72292]
[1766563455051,0.01077706,87007.0,86998.0,0.72292]
[1766563455254,0.01077706,87006.0,86998.0,0.72292]
[1766563455455,0.02301319,87008.0,86998.0,0.72292]
[1766563455763,0.01077701,87007.0,86998.0,0.72292]
[1766563456114,0.01077701,87006.0,86998.0,0.72292]
[1766563456476,0.01152,87008.0,86998.0,0.72292]
[1766563456678,0.01077693,87007.0,86998.0,0.72292]
[1766563456911,0.01077693,87006.0,86998.0,0.72292]
[1766563457032,0.01152,87008.0,86998.0,0.72292]
[1766563457231,0.01077692,87007.0,86998.0,0.72292]
[1766563457437,0.01077692,87006.0,86998.0,0.72292]
[1766563457791,0.01152,87008.0,86998.0,0.72292]
[1766563458012,0.01077686,87007.0,86998.0,0.72292]
[1766563458181,0.01077686,87006.0,86998.0,0.72292]
[1766563458386,0.01152,87008.0,86998.0,0.72292]
[1766563458583,0.0107768,87007.0,86998.0,0.72292]
[1766563458784,0.0107768,87006.0,86998.0,0.72292]
[1766563458986,0.01152,87008.0,86998.0,0.72292]
[1766563459191,0.0107768,87007.0,86998.0,0.72292]
[1766563459394,0.0107768,87006.0,86998.0,0.72292]
[1766563459596,0.01152,87008.0,86998.0,0.72292]
[1766563459854,0.01077669,87007.0,86998.0,0.72292]
[1766563460033,0.01077669,87006.0,86998.0,0.72292]
[1766563460256,0.01152,87008.0,86998.0,0.72292]
[1766563460470,0.01077572,87007.0,86998.0,0.72292]
[1766563460674,0.01077572,87006.0,86998.0,0.72292]
[1766563460819,0.01152,87008.0,86998.0,0.72292]
[1766563461021,0.01077562,87007.0,86998.0,0.72292]
[1766563461220,0.01077562,87006.0,86998.0,0.72292]
[1766563461415,0.01152,87008.0,86998.0,0.72292]
[1766563461620,0.01077562,87007.0,86998.0,0.72292]
[1766563461822,0.01077562,87006.0,86998.0,0.72292]
[1766563462029,0.02301319,87008.0,86998.0,0.72292]
[1766563462212,0.01077562,87007.0,86998.0,0.72292]
[1766563462407,0.01077562,87006.0,86998.0,0.72292]
[1766563462650,0.02301319,87008.0,86998.0,0.72292]
[1766563462820,0.02226895,87007.0,86998.0,0.72292]
[1766563463029,0.01077563,87006.0,86998.0,0.72292]
[1766563463231,0.02301319,87008.0,86998.0,0.72292]
[1766563463430,0.01077563,87007.0,86998.0,0.72292]
[1766563463630,0.01077563,87006.0,86998.0,0.72292]
[1766563463846,0.01152,87008.0,86998.0,0.72292]
[1766563464046,0.01077563,87007.0,86998.0,0.72292]
[1766563464253,0.02301319,87008.0,86998.0,0.72292]
[1766563464254,0.01077563,87006.0,86998.0,0.72292]
[1766563464449,0.01152,87008.0,86998.0,0.72292]
[1766563464655,0.01077569,87007.0,86998.0,0.72292]
[1766563464851,0.01077569,87006.0,86998.0,0.72292]
[1766563465065,0.02301319,87008.0,86998.0,0.72292]
[1766563465386,0.0107757,87007.0,86998.0,0.72292]
[1766563465552,0.0107757,87006.0,86998.0,0.72292]
[1766563465730,0.02301319,87008.0,86998.0,0.72292]
[1766563465932,0.01077573,87007.0,86998.0,0.72292]
[1766563466132,0.01077573,87006.0,86998.0,0.72292]
[1766563466467,0.01152,87008.0,86998.0,0.72292]
[1766563466794,0.01077577,87007.0,86998.0,0.72292]
[1766563466945,0.01077577,87006.0,86998.0,0.72292]
[1766563467133,0.01152,87008.0,86998.0,0.72292]
[1766563467336,0.01077581,87007.0,86998.0,0.72292]
[1766563467541,0.01077581,87006.0,86998.0,0.72292]
[1766563467744,0.01149346,87006.0,86998.0,0.722371]
[1766563468091,0.01149372,87004.0,86998.0,0.722371]
[1766563468278,0.01149385,87003.0,86998.0,0.7024029]
[1766563468443,0.01149372,87004.0,86998.0,0.7024029]
[1766563468639,0.06896287,87004.0,86998.0,0.7024029]
[1766563468841,0.01149451,86998.0,86989.0,0.65021943]
[1766563469046,0.44001365,86999.0,86987.0,0.01152]
[1766563469263,0.02482542,86998.0,86987.0,0.01152]
[1766563469465,0.01149412,87001.0,86987.0,0.01152]
[1766563469663,0.01077097,87000.0,86987.0,0.01152]
[1766563469843,0.01149412,87001.0,86987.0,0.01152]
[1766563470046,0.46227887,87000.0,86987.0,0.01152]
[1766563470249,0.02482542,86999.0,86987.0,0.01152]
[1766563470546,0.01152,86998.0,86987.0,0.01152]
[1766563472157,0.44001365,86997.0,86983.0,0.00011]
[1766563472373,0.44001365,86997.0,86967.0,0.01149861]
[1766563472374,0.01149663,86982.0,86967.0,0.01149861]
[1766563472572,0.44001365,86980.0,86966.0,0.66343874]
[1766563472773,0.44001365,86980.0,86966.0,0.65194]
[1766563472975,0.44001365,86980.0,86967.0,0.65194]
[1766563474026,0.4403126,86980.0,86967.0,0.65194]
[1766563474572,0.4403126,86980.0,86967.0,0.66343861]
[1766563475444,0.4403126,86980.0,86968.0,0.67174848]
[1766563475669,0.4403126,86980.0,86970.0,0.01149821]
[1766563475859,0.01152,86981.0,86971.0,0.66025]
[1766563476065,0.01152,86981.0,86971.0,0.67174808]
[1766563476560,0.01152,86981.0,86973.0,0.66025]
[1766563479238,0.01152,86981.0,86975.0,0.66025]
[1766563479476,0.01097,86981.0,86975.0,0.67174755]
[1766563480016,0.01097,86981.0,86975.0,0.66025]
[1766563480276,0.00011,86990.0,86977.0,0.66025]
[1766563480480,0.01152,86989.0,86977.0,0.66025]
[1766563480798,0.00011,86990.0,86977.0,0.66025]
[1766563480938,0.00011,86990.0,86978.0,0.01149716]
[1766563481148,0.01152,86989.0,86979.0,0.66025]
[1766563481885,0.01149636,86984.0,86970.0,0.01163]
[1766563482069,0.01149636,86984.0,86971.0,0.66025]
[1766563482458,0.01149623,86985.0,86971.0,0.66025]
[1766563482670,0.0114961,86986.0,86971.0,0.67174808]
[1766563484028,0.0114961,86986.0,86973.0,0.66025]
[1766563484237,0.01149597,86987.0,86973.0,0.66025]
[1766563484642,0.0114961,86986.0,86973.0,0.66025]
[1766563484848,0.01149583,86988.0,86973.0,0.67174782]
[1766563485096,0.01149597,86987.0,86973.0,0.66025]
[1766563485291,0.01149583,86988.0,86973.0,0.67174782]
[1766563485472,0.08049431,86989.0,86973.0,0.67174782]
[1766563485897,0.01149597,86987.0,86973.0,0.66025]
[1766563486105,0.01149583,86988.0,86973.0,0.67174782]
[1766563486650,0.01149597,86987.0,86973.0,0.66025]
[1766563486755,0.01149583,86988.0,86973.0,0.67174782]
[1766563487167,0.00011,86990.0,86975.0,0.67174755]
[1766563487410,0.01152,86989.0,86975.0,0.67174755]
[1766563488135,0.01152,86989.0,86978.0,0.66025]
[1766563488751,0.01152,86989.0,86978.0,0.67174716]
[1766563489162,0.01149583,86988.0,86978.0,0.66025]
[1766563491528,0.01149597,86987.0,86978.0,0.66025]
[1766563491980,0.05748156,86985.0,86978.0,0.6597]
[1766563492206,0.0114961,86986.0,86978.0,0.6597]
[1766563494254,0.01149623,86985.0,86978.0,0.6597]
[1766563494683,0.0114961,86986.0,86978.0,0.6597]
[1766563497122,0.01149623,86985.0,86978.0,0.6597]
[1766563497425,0.03625232,86987.0,86978.0,0.6597]
[1766563497650,0.0114961,86986.0,86978.0,0.6597]
[1766563498589,0.01149597,86987.0,86978.0,0.6597]
[1766563500260,0.0114961,86986.0,86978.0,0.6597]
[1766563500858,0.01149623,86985.0,86978.0,0.6597]
[1766563501036,0.0114961,86986.0,86978.0,0.6597]
[1766563501397,0.01149623,86985.0,86978.0,0.6597]
[1766563501542,0.0114961,86986.0,86978.0,0.6597]
[1766563502224,0.01076882,86985.0,86978.0,0.6597]
[1766563502421,0.0114961,86986.0,86978.0,0.6597]
[1766563502663,0.01076881,86985.0,86978.0,0.6597]
[1766563502843,0.0114961,86986.0,86978.0,0.6597]
[1766563503045,0.01076881,86985.0,86978.0,0.6597]
[1766563503244,0.01149597,86987.0,86978.0,0.6597]
[1766563503462,0.01076948,86986.0,86978.0,0.6597]
[1766563503804,0.01076948,86985.0,86978.0,0.6597]
[1766563504007,0.01149597,86987.0,86978.0,0.6597]
[1766563504168,0.01077118,86986.0,86978.0,0.6597]
[1766563504371,0.01077118,86985.0,86978.0,0.6597]
[1766563504712,0.01149597,86987.0,86978.0,0.6597]
[1766563504919,0.01077122,86986.0,86978.0,0.6597]
[1766563505198,0.11963098,86981.0,86961.0,0.65185]
[1766563505346,0.02481666,86980.0,86971.0,0.65185]
[1766563505681,0.01152,86985.0,86981.0,0.65185]
[1766563506466,0.02301623,86985.0,86981.0,0.65185]
[1766563506669,0.01149636,86984.0,86981.0,0.65185]
[1766563506828,0.01149689,86980.0,86971.0,0.65185]
[1766563508071,0.01149676,86981.0,86971.0,0.65185]
[1766563509100,0.01149689,86980.0,86971.0,0.65185]
[1766563509244,0.01149649,86983.0,86971.0,0.65185]
[1766563509449,0.01152,86985.0,86971.0,0.66334808]
[1766563509647,5.6e-07,86984.0,86972.0,0.65185]
[1766563509854,0.01149782,86973.0,86970.0,0.00011]
[1766563510252,0.05749042,86972.0,86970.0,0.00011]
[1766563510452,0.05749042,86972.0,86953.0,0.01150046]
[1766563510453,0.01149874,86966.0,86946.0,0.65185]
[1766563510652,0.01149874,86966.0,86948.0,0.65185]
[1766563510653,0.05749567,86964.0,86948.0,0.65185]
[1766563510882,0.01149887,86965.0,86950.0,0.65185]
[1766563511076,0.0114994,86961.0,86950.0,0.65185]
[1766563511252,0.01149887,86965.0,86950.0,0.65185]
[1766563511456,0.01149848,86968.0,86950.0,0.65185]
[1766563511677,0.01149874,86966.0,86950.0,0.65185]
[1766563511856,0.01149887,86965.0,86950.0,0.65185]
[1766563512259,0.01149901,86964.0,86950.0,0.65185]
[1766563513307,0.01149887,86965.0,86950.0,0.65185]
[1766563513498,0.01149901,86964.0,86950.0,0.65185]
[1766563514090,0.01149887,86965.0,86950.0,0.65185]
[1766563514401,0.01149901,86964.0,86950.0,0.65185]
[1766563515204,0.01149887,86965.0,86950.0,0.65185]
[1766563515401,0.01149901,86964.0,86950.0,0.65185]
[1766563516631,0.01149914,86963.0,86950.0,0.65185]
[1766563516808,0.01149927,86962.0,86950.0,0.65185]
[1766563517783,0.01149914,86963.0,86950.0,0.65185]
[1766563518349,0.01149887,86965.0,86950.0,0.65185]
[1766563518542,0.01149914,86963.0,86950.0,0.65185]
[1766563518741,0.01149901,86964.0,86950.0,0.65185]
[1766563518886,0.01149927,86962.0,86950.0,0.65185]
[1766563519090,0.01149914,86963.0,86950.0,0.65185]
[1766563519652,0.01149927,86962.0,86950.0,0.65185]
[1766563519820,0.01149887,86965.0,86950.0,0.66335086]
[1766563520017,0.01149874,86966.0,86950.0,0.66335086]
[1766563520205,0.01149874,86966.0,86952.0,0.65185]
[1766563520405,0.01149874,86966.0,86954.0,0.65185]
[1766563520812,0.01149887,86965.0,86954.0,0.65185]
[1766563521079,0.01149874,86966.0,86954.0,0.65185]
[1766563521494,0.0114994,86961.0,86954.0,0.65185]
[1766563521704,0.0114994,86961.0,86953.0,0.01152]
[1766563521705,0.01149954,86960.0,86953.0,0.01152]
[1766563521927,0.0114994,86961.0,86953.0,0.01152]
[1766563522319,0.01149967,86959.0,86953.0,0.01152]
[1766563522682,0.0114994,86961.0,86953.0,0.01152]
[1766563523079,0.01149914,86963.0,86953.0,0.01152]
[1766563523231,0.01149927,86962.0,86953.0,0.01152]
[1766563523434,0.01149927,86962.0,86948.0,0.65185]
[1766563523678,0.01149914,86963.0,86950.0,0.66337]
[1766563524080,0.0114994,86961.0,86950.0,0.66337]
[1766563524642,0.06899703,86961.0,86950.0,0.66337]
[1766563524940,0.01149993,86957.0,86950.0,0.66337]
[1766563525256,0.8,87105.0,86943.0,0.01152]
[1766563525257,0.01150099,86949.0,86943.0,0.01152]
[1766563525582,0.01150086,86950.0,86942.0,0.01152]
[1766563525775,0.01150033,86954.0,86943.0,0.11963098]
[1766563526157,0.01150046,86953.0,86943.0,0.11963098]
[1766563527324,0.01150046,86953.0,86942.0,0.01152]
[1766563527528,0.01150059,86952.0,86942.0,0.01152]
[1766563527763,0.01150046,86953.0,86942.0,0.01152]
[1766563530225,0.01150059,86952.0,86942.0,0.01152]
[1766563531612,0.01152,86955.0,86942.0,0.01152]
[1766563531793,0.01150033,86954.0,86942.0,0.01152]
[1766563531994,0.01152,86955.0,86942.0,0.01152]
[1766563532196,0.4403126,86970.0,86946.0,0.66518]
[1766563532392,0.28748964,86969.0,86946.0,0.66518]
[1766563532613,0.01149954,86960.0,86946.0,0.66518]
[1766563532815,0.01152,86959.0,86946.0,0.66518]
[1766563534831,0.01152,86959.0,86946.0,0.67668139]
[1766563534999,0.01152,86959.0,86946.0,0.66518]
[1766563537012,0.01152,86959.0,86947.0,0.73729]
[1766563537569,0.01149782,86973.0,86960.0,0.72577]
[1766563537773,0.01149808,86971.0,86960.0,0.72577]
[1766563538324,0.046,86977.0,86962.0,0.72577]
[1766563538549,0.01152,86979.0,86966.0,0.72577]
[1766563538879,0.01152,86982.0,86966.0,0.72577]
[1766563539224,0.01152,86982.0,86966.0,0.73726874]
[1766563539424,0.02301663,86982.0,86966.0,0.73726874]
[1766563539625,0.01152,86982.0,86966.0,0.73726874]
[1766563539833,0.01152,86982.0,86963.0,0.18864609]
[1766563539834,0.04611,86990.0,86982.0,0.000549]
[1766563540039,0.00011,86990.0,86982.0,0.726319]
[1766563540262,0.01149412,87001.0,86982.0,0.73726663]
[1766563540465,0.01149412,87001.0,86981.0,0.02301676]
[1766563540466,0.01152,87000.0,86990.0,0.00011]
[1766563540667,0.05747456,86996.0,86990.0,0.00011]
[1766563540903,0.01149491,86995.0,86985.0,0.72577]
[1766563541105,0.01149517,86993.0,86985.0,0.72577]
[1766563541308,0.01149636,86984.0,86978.0,0.01152]
[1766563541629,0.02301544,86991.0,86976.0,0.73729]
[1766563541783,0.01149557,86990.0,86976.0,0.73729]
[1766563541992,0.0114957,86989.0,86976.0,0.73729]
[1766563542590,0.01149557,86990.0,86976.0,0.73729]
[1766563542815,0.0114957,86989.0,86976.0,0.73729]
[1766563543447,0.01152,86991.0,86976.0,0.73729]
[1766563544256,0.02301544,86991.0,86976.0,0.73729]
[1766563544417,0.01149557,86990.0,86976.0,0.73729]
[1766563544619,0.01149597,86987.0,86976.0,0.73729]
[1766563545443,0.01149583,86988.0,86976.0,0.73729]
[1766563545650,0.0114957,86989.0,86976.0,0.73729]
[1766563545844,0.01149583,86988.0,86976.0,0.73729]
[1766563547927,0.0114957,86989.0,86976.0,0.73729]
[1766563548125,0.06897446,86989.0,86976.0,0.73729]
[1766563548870,0.01149557,86990.0,86976.0,0.01152]
[1766563548871,0.01149649,86983.0,86976.0,0.01152]
[1766563549204,0.01149623,86985.0,86976.0,0.01152]
[1766563549583,0.01149636,86984.0,86976.0,0.01152]
[1766563550750,0.01149663,86982.0,86976.0,0.01152]
[1766563550953,0.01149649,86983.0,86976.0,0.01152]
[1766563551388,0.01149623,86985.0,86976.0,0.01152]
[1766563551797,0.0114961,86986.0,86976.0,0.01152]
[1766563552963,0.01149583,86988.0,86976.0,0.01152]
[1766563553165,0.01149597,86987.0,86976.0,0.01152]
[1766563553742,0.01149583,86988.0,86976.0,0.01152]
[1766563554163,0.01149597,86987.0,86976.0,0.01152]
[1766563554824,0.01149583,86988.0,86976.0,0.01152]
[1766563555912,0.01149597,86987.0,86976.0,0.01152]
[1766563556280,0.01149583,86988.0,86976.0,0.01152]
[1766563556482,0.0114961,86986.0,86976.0,0.01152]
[1766563557199,0.01149623,86985.0,86976.0,0.01152]
[1766563557394,0.01149636,86984.0,86976.0,0.01152]
[1766563557593,0.01149623,86985.0,86976.0,0.01152]
[1766563559001,0.01149636,86984.0,86976.0,0.01152]
[1766563559604,0.01149623,86985.0,86976.0,0.01152]
[1766563560360,0.01149636,86984.0,86976.0,0.01152]
[1766563560511,0.01149623,86985.0,86976.0,0.01152]
[1766563560950,0.01149636,86984.0,86976.0,0.01152]
[1766563561362,0.0114961,86986.0,86976.0,0.01152]
[1766563562132,0.05747793,86990.0,86976.0,0.74179]
[1766563562335,0.01152,86989.0,86976.0,0.74179]
[1766563568457,0.01076418,86988.0,86976.0,0.74179]
[1766563568663,0.01152,86989.0,86976.0,0.74179]
[1766563568836,0.01076417,86988.0,86976.0,0.74179]
[1766563569038,0.01152,86989.0,86976.0,0.74179]
[1766563569246,0.01076417,86988.0,86976.0,0.74179]
[1766563569395,0.01076417,86987.0,86976.0,0.74179]
[1766563569604,0.01152,86989.0,86976.0,0.74179]
[1766563569805,0.01076704,86988.0,86976.0,0.74179]
[1766563570002,0.01076704,86987.0,86976.0,0.74179]
[1766563570218,0.01152,86989.0,86976.0,0.74179]
[1766563570409,0.01076701,86988.0,86976.0,0.74179]
[1766563570611,0.01076701,86987.0,86976.0,0.74179]
[1766563570861,0.02476092,86990.0,86987.0,0.000549]
[1766563571077,0.01076715,86989.0,86982.0,0.73027]
[1766563571282,0.01076715,86988.0,86982.0,0.73027]
[1766563571489,0.02301491,86995.0,86982.0,0.73027]
[1766563571698,0.01076774,86994.0,86982.0,0.73027]
[1766563571901,0.01076774,86993.0,86982.0,0.73027]
[1766563572103,0.01076774,86992.0,86982.0,0.73027]
[1766563572307,0.01076774,86991.0,86982.0,0.73027]
[1766563572524,0.01076774,86990.0,86982.0,0.73027]
[1766563572719,0.01076774,86989.0,86982.0,0.73027]
[1766563572927,0.01149504,86994.0,86982.0,0.73027]
[1766563573183,0.01076731,86993.0,86982.0,0.73027]
[1766563573385,0.01076731,86992.0,86982.0,0.73027]
[1766563573587,0.01076731,86991.0,86982.0,0.73027]
[1766563573799,0.01076731,86990.0,86982.0,0.73027]
[1766563574004,0.01149517,86993.0,86982.0,0.73027]
[1766563574207,0.01076693,86992.0,86982.0,0.73027]
[1766563574403,0.01076693,86991.0,86982.0,0.73027]
[1766563574603,0.01076693,86990.0,86982.0,0.73027]
[1766563574757,0.01149517,86993.0,86982.0,0.73027]
[1766563574961,0.01076659,86992.0,86982.0,0.73027]
[1766563575157,0.01076659,86991.0,86982.0,0.73027]
[1766563575369,0.01076659,86990.0,86982.0,0.73027]
[1766563575596,0.0114953,86992.0,86982.0,0.73027]
[1766563575754,0.01076623,86991.0,86982.0,0.73027]
[1766563575953,0.01076623,86990.0,86982.0,0.73027]
[1766563576151,0.0114957,86989.0,86981.0,0.01152]
[1766563576351,0.0114961,86986.0,86981.0,0.01152]
[1766563577429,0.01149597,86987.0,86981.0,0.01152]
[1766563578275,0.0114957,86989.0,86981.0,0.01152]
[1766563578480,0.01076572,86988.0,86981.0,0.01152]
[1766563578684,0.01076572,86987.0,86981.0,0.01152]
[1766563578892,0.0114957,86989.0,86981.0,0.01152]
[1766563579111,0.02226156,86988.0,86981.0,0.01152]
[1766563579307,0.01149557,86990.0,86981.0,0.01152]
[1766563579308,0.01076573,86987.0,86981.0,0.01152]
[1766563579536,0.01149557,86990.0,86981.0,0.01152]
[1766563579874,0.01076574,86989.0,86982.0,0.73027]
[1766563580080,0.01076574,86988.0,86982.0,0.73027]
[1766563580290,0.01152,86995.0,86988.0,0.00055]
[1766563583224,0.02476092,86999.0,86995.0,0.00055]
[1766563583446,0.01152,87001.0,86995.0,0.73082]
[1766563583682,0.01152,87006.0,86995.0,0.73027]
[1766563583912,0.01149464,86997.0,86993.0,0.01152]
[1766563584127,0.01149464,86997.0,86989.0,0.73027]
[1766563584128,0.01149491,86995.0,86992.0,0.01152]
[1766563584551,0.01149478,86996.0,86992.0,0.01152]
[1766563584749,0.01149464,86997.0,86992.0,0.01152]
[1766563585171,0.01149464,86997.0,86992.0,0.010971]
[1766563585745,0.01149451,86998.0,86992.0,0.010971]
[1766563585963,0.01149464,86997.0,86992.0,0.010971]
[1766563586165,0.01149451,86998.0,86992.0,0.010971]
[1766563586710,0.02479816,87001.0,86992.0,0.010971]
[1766563586905,0.03629228,87001.0,86992.0,0.010971]
[1766563587249,0.01149412,87001.0,86992.0,0.010971]
[1766563588617,0.01149425,87000.0,86992.0,0.010971]
[1766563589748,0.01149412,87001.0,86992.0,0.010971]
[1766563589942,0.01149425,87000.0,86992.0,0.010971]
[1766563590585,0.01149478,86996.0,86992.0,0.010971]
[1766563590799,0.01149478,86996.0,86992.0,1e-06]
[1766563591235,0.01149478,86996.0,86990.0,0.01152]
[1766563591448,0.01149478,86996.0,86988.0,0.01152]
[1766563591658,0.0114953,86992.0,86988.0,0.01152]
[1766563591973,0.01149504,86994.0,86988.0,0.01152]
[1766563592198,0.06897033,86994.0,86988.0,0.01152]
[1766563592420,0.01149504,86994.0,86988.0,0.01152]